fUSD/lending_fUSD_20260517
["ID","MTS","AMOUNT","RATE_DAILY","PERIOD"]
[422503420,1779001850000,-408.97,0.00040412,120]
[422503425,1779001850000,-263.8,0.00040412,2]
[422503424,1779001850000,-166.57,0.00040412,114]
[422503431,1779001850000,-160.0,0.00040453,2]
[422503427,1779001850000,-166.57,0.00040413,114]
[422503426,1779001850000,-300.19796051,0.00040412,2]
[422503429,1779001850000,-1000.0,0.00040453,90]
[422503433,1779001850000,-160.0,0.00040453,2]
[422503432,1779001850000,-160.0,0.00040453,2]
[422503434,1779001850000,-160.0,0.00040453,2]
[422503376,1779001850000,-2819.38102309,0.00040375,2]
[422503430,1779001850000,-528.4543528,0.00040453,2]
[422503407,1779001850000,-1830.62971474,0.00040412,120]
[422503421,1779001850000,-408.97,0.00040412,120]
[422503404,1779001850000,-320.57411475,0.00040412,120]
[422503382,1779001850000,-303.0,0.00040388,120]
[422503418,1779001850000,-408.97,0.00040412,120]
[422503384,1779001850000,-164.0,0.00040388,120]
[422503392,1779001850000,-1528.56,0.000404,14]
[422503385,1779001850000,-169.0,0.00040388,120]
[422503383,1779001850000,-159.0,0.00040388,120]
[422503393,1779001850000,-1000.0,0.00040402,119]
[422503388,1779001850000,-159.0,0.00040388,120]
[422503394,1779001850000,-1000.0,0.00040411,4]
[422503389,1779001850000,-160.0,0.00040388,120]
[422503387,1779001850000,-153.0,0.00040388,120]
[422503391,1779001850000,-1000.0,0.00040396,90]
[422503386,1779001850000,-439.29,0.00040388,10]
[422503396,1779001850000,-1000.0,0.00040411,3]
[422503402,1779001850000,-1000.0,0.00040411,91]
[422503390,1779001850000,-1000.0,0.00040389,90]
[422503397,1779001850000,-1000.0,0.00040411,12]
[422503405,1779001850000,-309.77765035,0.00040412,120]
[422503399,1779001850000,-1000.0,0.00040411,90]
[422503403,1779001850000,-1000.0,0.00040411,49]
[422503398,1779001850000,-1000.0,0.00040411,39]
[422503401,1779001850000,-1000.0,0.00040411,31]
[422503400,1779001850000,-1000.0,0.00040411,20]
[422503395,1779001850000,-1000.0,0.00040411,60]
[422503406,1779001850000,-495.69948996,0.00040412,120]
[422503479,1779001851000,-63265.51413939,0.00040453,30]
[422503481,1779001851000,-1221.0,0.00040453,4]
[422503474,1779001851000,-2063.1482996,0.00040453,5]
[422503473,1779001851000,-1210.0,0.00040453,2]
[422503480,1779001851000,-500.0,0.00040453,5]
[422503465,1779001851000,-160.0,0.00040453,2]
[422503471,1779001851000,-125459.62729386,0.00040453,2]
[422503470,1779001851000,-172427.13281199,0.00040453,2]
[422503469,1779001851000,-182798.90016468,0.00040453,2]
[422503466,1779001851000,-160.0,0.00040453,2]
[422503476,1779001851000,-1015.09141504,0.00040453,5]
[422503472,1779001851000,-10998.38615511,0.00040453,3]
[422503478,1779001851000,-600.0,0.00040453,5]
[422503490,1779001851000,-550.0,0.00040453,2]
[422503475,1779001851000,-3947.02252798,0.00040453,12]
[422503493,1779001851000,-15347.09920216,0.00040453,2]
[422503491,1779001851000,-11001.35140326,0.00040453,2]
[422503485,1779001851000,-32055.60884649,0.00040453,5]
[422503484,1779001851000,-2060.38890166,0.00040453,120]
[422503486,1779001851000,-269712.92193784,0.00040453,2]
[422503487,1779001851000,-3327.77303367,0.00040453,2]
[422503483,1779001851000,-2036.47393156,0.00040453,4]
[422503492,1779001851000,-165317.03116426,0.00040453,2]
[422503482,1779001851000,-15418.38951198,0.00040453,3]
[422503489,1779001851000,-15197.79676069,0.00040453,2]
[422503463,1779001851000,-160.0,0.00040453,2]
[422503477,1779001851000,-15904.31012747,0.00040453,3]
[422503461,1779001851000,-160.0,0.00040453,2]
[422503438,1779001851000,-160.0,0.00040453,2]
[422503459,1779001851000,-160.0,0.00040453,2]
[422503435,1779001851000,-160.0,0.00040453,2]
[422503437,1779001851000,-160.0,0.00040453,2]
[422503436,1779001851000,-160.0,0.00040453,2]
[422503494,1779001851000,-234.49828014,0.00040453,2]
[422503440,1779001851000,-160.0,0.00040453,2]
[422503439,1779001851000,-160.0,0.00040453,2]
[422503442,1779001851000,-160.0,0.00040453,2]
[422503441,1779001851000,-160.0,0.00040453,2]
[422503443,1779001851000,-691.646202,0.00040453,2]
[422503445,1779001851000,-30149.28,0.00040453,30]
[422503447,1779001851000,-744.25,0.00040453,120]
[422503444,1779001851000,-1500.0,0.00040453,10]
[422503455,1779001851000,-160.0,0.00040453,2]
[422503458,1779001851000,-160.0,0.00040453,2]
[422503446,1779001851000,-151417.06902081,0.00040453,60]
[422503454,1779001851000,-160.0,0.00040453,2]
[422503452,1779001851000,-160.0,0.00040453,2]
[422503451,1779001851000,-160.0,0.00040453,2]
[422503453,1779001851000,-160.0,0.00040453,2]
[422503450,1779001851000,-199916.00001985,0.00040453,60]
[422503449,1779001851000,-500.0,0.00040453,120]
[422503457,1779001851000,-160.0,0.00040453,2]
[422503467,1779001851000,-160.0,0.00040453,2]
[422503468,1779001851000,-585.46817028,0.00040453,5]
[422503456,1779001851000,-160.0,0.00040453,2]
[422503460,1779001851000,-160.0,0.00040453,2]
[422503464,1779001851000,-160.0,0.00040453,2]
[422503462,1779001851000,-160.0,0.00040453,2]
[422503448,1779001851000,-154.16155088,0.00040453,120]
[422503495,1779001851000,-177.96499198,0.00040453,2]
[422503488,1779001851000,-179.92936307,0.00040453,2]
[422503499,1779001851000,-384.44179284,0.00040453,2]
[422503530,1779001851000,-21403.7843022,0.00040453,10]
[422503540,1779001851000,-884.97217572,0.00040453,2]
[422503531,1779001851000,-1146.03485972,0.00040453,2]
[422503532,1779001851000,-30914.50681303,0.00040453,2]
[422503541,1779001851000,-5846.10310591,0.00040453,2]
[422503539,1779001851000,-207.93125472,0.00040453,2]
[422503535,1779001851000,-412.59839071,0.00040453,2]
[422503534,1779001851000,-280.05927403,0.00040453,2]
[422503538,1779001851000,-2501.61133799,0.00040453,2]
[422503533,1779001851000,-5394.23099941,0.00040453,4]
[422503542,1779001851000,-289.88393279,0.00040453,2]
[422503536,1779001851000,-20851.81619179,0.00040453,2]
[422503537,1779001851000,-286.56366923,0.00040453,120]
[422503529,1779001851000,-7049.89861506,0.00040453,4]
[422503543,1779001851000,-1150.33208745,0.00040453,2]
[422503555,1779001851000,-506.95271532,0.00040453,5]
[422503546,1779001851000,-472.13697545,0.00040453,2]
[422503545,1779001851000,-898.09695698,0.00040453,2]
[422503554,1779001851000,-1039.99629527,0.00040453,2]
[422503548,1779001851000,-610.0,0.00040453,2]
[422503549,1779001851000,-12987.72352874,0.00040453,2]
[422503553,1779001851000,-761.26215921,0.00040453,2]
[422503551,1779001851000,-518.8554887,0.00040453,2]
[422503552,1779001851000,-204.47256542,0.00040453,2]
[422503550,1779001851000,-363.23492875,0.00040453,2]
[422503556,1779001851000,-13723.41190369,0.00040453,2]
[422503557,1779001851000,-201.53402526,0.00040453,2]
[422503501,1779001851000,-1058.35840726,0.00040453,2]
[422503544,1779001851000,-2228.98979112,0.00040453,2]
[422503518,1779001851000,-631.24788339,0.00040453,2]
[422503547,1779001851000,-150.0,0.00040453,2]
[422503523,1779001851000,-373.85453572,0.00040453,2]
[422503525,1779001851000,-76010.45763666,0.00040453,2]
[422503498,1779001851000,-6000.0,0.00040453,2]
[422503496,1779001851000,-501.98166839,0.00040453,3]
[422503502,1779001851000,-677.95120217,0.00040453,2]
[422503504,1779001851000,-753.11811521,0.00040453,2]
[422503500,1779001851000,-1309.69212688,0.00040453,2]
[422503503,1779001851000,-8001.62650673,0.00040453,2]
[422503506,1779001851000,-227.13407577,0.00040453,5]
[422503516,1779001851000,-493.5085991,0.00040453,2]
[422503508,1779001851000,-1093.09486154,0.00040453,2]
[422503507,1779001851000,-220.05318841,0.00040453,2]
[422503505,1779001851000,-641.88748726,0.00040453,2]
[422503509,1779001851000,-500.0,0.00040453,7]
[422503512,1779001851000,-1804.46935386,0.00040453,2]
[422503497,1779001851000,-81229.05477068,0.00040453,30]
[422503515,1779001851000,-934.73094971,0.00040453,2]
[422503511,1779001851000,-350.56122197,0.00040453,2]
[422503520,1779001851000,-1123.68230108,0.00040453,5]
[422503521,1779001851000,-561.89504263,0.00040453,2]
[422503524,1779001851000,-2260.05832322,0.00040453,2]
[422503527,1779001851000,-12574.59377024,0.00040453,2]
[422503528,1779001851000,-1882.39436798,0.00040453,2]
[422503526,1779001851000,-15212.65254581,0.00040453,2]
[422503522,1779001851000,-1036.84779898,0.00040453,2]
[422503517,1779001851000,-43089.9592474,0.00040453,5]
[422503514,1779001851000,-3926.97267679,0.00040453,2]
[422503510,1779001851000,-2500.0,0.00040453,2]
[422503513,1779001851000,-1100.0,0.00040453,2]
[422503519,1779001851000,-1626.63842479,0.00040453,2]
[422503597,1779001852000,-152.0,0.00040738,6]
[422503602,1779001852000,-9520.9583176,0.00040781,2]
[422503603,1779001852000,-744.8786334,0.00040781,2]
[422503599,1779001852000,-106219.0735231,0.00040779,2]
[422503598,1779001852000,-572172.9220375,0.00040779,2]
[422503593,1779001852000,-394623.24160619,0.000407,12]
[422503601,1779001852000,-397764.4861408,0.00040781,2]
[422503594,1779001852000,-1000.0,0.00040705,90]
[422503604,1779001852000,-203.2902121,0.00040781,2]
[422503595,1779001852000,-233.27153218,0.00040706,60]
[422503600,1779001852000,-39737.2217503,0.00040779,2]
[422503590,1779001852000,-2000.0,0.00040679,2]
[422503596,1779001852000,-5148.93267477,0.00040721,2]
[422503606,1779001852000,-1726.6246939,0.00040781,2]
[422503608,1779001852000,-2005.9555727,0.00040799,30]
[422503609,1779001852000,-1000.0,0.00040799,30]
[422503616,1779001852000,-1000.0,0.00040879,90]
[422503605,1779001852000,-151.0,0.00040781,30]
[422503617,1779001852000,-346.07286716,0.00040888,7]
[422503610,1779001852000,-1000.0,0.00040799,53]
[422503614,1779001852000,-1000.0,0.00040855,90]
[422503611,1779001852000,-224.8179837,0.000408,30]
[422503613,1779001852000,-1405.31,0.0004084,2]
[422503615,1779001852000,-330.0,0.00040877,85]
[422503612,1779001852000,-46092.0,0.00040804,120]
[422503619,1779001852000,-1000.0,0.00040899,17]
[422503587,1779001852000,-503.0,0.00040675,16]
[422503618,1779001852000,-1000.0,0.00040899,14]
[422503620,1779001852000,-1000.0,0.00040899,15]
[422503607,1779001852000,-627.11025174,0.00040792,120]
[422503588,1779001852000,-12966.3631,0.00040679,2]
[422503573,1779001852000,-500.0,0.00040453,120]
[422503584,1779001852000,-2557.44843548,0.00040651,12]
[422503629,1779001852000,-993.33218303,0.00040927,30]
[422503560,1779001852000,-379.0,0.00040453,2]
[422503564,1779001852000,-10000.0,0.00040453,3]
[422503568,1779001852000,-180.0,0.00040453,2]
[422503567,1779001852000,-1460.92182519,0.00040453,10]
[422503559,1779001852000,-1531.03976932,0.00040453,2]
[422503566,1779001852000,-78779.66745019,0.00040453,14]
[422503561,1779001852000,-20000.0,0.00040453,2]
[422503558,1779001852000,-1922.51979834,0.00040453,7]
[422503565,1779001852000,-1603.56998687,0.00040453,2]
[422503563,1779001852000,-160.74669814,0.00040453,2]
[422503571,1779001852000,-1990.0,0.00040453,2]
[422503570,1779001852000,-500.0,0.00040453,2]
[422503569,1779001852000,-5423.21706216,0.00040453,2]
[422503572,1779001852000,-7518.2363046,0.00040453,2]
[422503575,1779001852000,-6583.40584878,0.000405,120]
[422503574,1779001852000,-234.39,0.000405,30]
[422503577,1779001852000,-500.0,0.00040548,120]
[422503576,1779001852000,-627.11025174,0.00040518,120]
[422503579,1779001852000,-500.0,0.00040589,120]
[422503578,1779001852000,-46092.0,0.00040554,120]
[422503581,1779001852000,-163.0,0.00040611,11]
[422503592,1779001852000,-151.0,0.000407,120]
[422503591,1779001852000,-1000.0,0.00040686,90]
[422503583,1779001852000,-500.0,0.0004063,120]
[422503580,1779001852000,-1586.0,0.00040606,11]
[422503582,1779001852000,-1000.0,0.00040625,90]
[422503586,1779001852000,-192.0,0.00040671,120]
[422503585,1779001852000,-188.64613604,0.00040653,120]
[422503589,1779001852000,-403.9197,0.00040679,120]
[422503562,1779001852000,-468.36222448,0.00040453,2]
[422503621,1779001852000,-229.81323842,0.000409,30]
[422503628,1779001852000,-1000.0,0.00040926,11]
[422503659,1779001852000,-151.0,0.00040999,10]
[422503662,1779001852000,-151.0,0.00040999,10]
[422503660,1779001852000,-151.0,0.00040999,10]
[422503661,1779001852000,-151.0,0.00040999,10]
[422503670,1779001852000,-500.0,0.00040999,10]
[422503671,1779001852000,-500.0,0.00040999,10]
[422503669,1779001852000,-500.0,0.00040999,10]
[422503668,1779001852000,-151.0,0.00040999,10]
[422503665,1779001852000,-500.0,0.00040999,10]
[422503672,1779001852000,-311.54619382,0.00040999,10]
[422503663,1779001852000,-151.0,0.00040999,10]
[422503664,1779001852000,-151.0,0.00040999,10]
[422503667,1779001852000,-500.0,0.00040999,10]
[422503666,1779001852000,-151.0,0.00040999,10]
[422503674,1779001852000,-500.0,0.00040999,10]
[422503686,1779001852000,-152.0,0.00040999,10]
[422503685,1779001852000,-152.0,0.00040999,10]
[422503673,1779001852000,-500.0,0.00040999,10]
[422503676,1779001852000,-500.0,0.00040999,10]
[422503675,1779001852000,-152.0,0.00040999,10]
[422503681,1779001852000,-152.0,0.00040999,10]
[422503678,1779001852000,-500.0,0.00040999,10]
[422503683,1779001852000,-152.0,0.00040999,10]
[422503680,1779001852000,-500.0,0.00040999,10]
[422503679,1779001852000,-152.0,0.00040999,10]
[422503682,1779001852000,-500.0,0.00040999,10]
[422503677,1779001852000,-152.0,0.00040999,10]
[422503687,1779001852000,-174.61919141,0.00040999,10]
[422503630,1779001852000,-294.86375332,0.00040927,30]
[422503650,1779001852000,-2294.9737345,0.00040975,2]
[422503651,1779001852000,-1000.0,0.00040979,120]
[422503684,1779001852000,-152.0,0.00040999,10]
[422503657,1779001852000,-151.0,0.00040999,10]
[422503654,1779001852000,-205.94293675,0.00040999,10]
[422503623,1779001852000,-900.0,0.000409,14]
[422503627,1779001852000,-804.0,0.00040926,11]
[422503622,1779001852000,-200.0,0.000409,17]
[422503624,1779001852000,-194.168,0.000409,43]
[422503625,1779001852000,-1000.0,0.000409,7]
[422503626,1779001852000,-2313.0,0.00040902,11]
[422503632,1779001852000,-1000.0,0.00040959,90]
[422503644,1779001852000,-1008.41099095,0.00040975,2]
[422503631,1779001852000,-246.78,0.00040938,86]
[422503633,1779001852000,-400.0,0.0004097,3]
[422503643,1779001852000,-1000.0,0.00040975,2]
[422503636,1779001852000,-1000.0,0.00040975,2]
[422503637,1779001852000,-1000.0,0.00040975,2]
[422503635,1779001852000,-1000.0,0.00040975,2]
[422503642,1779001852000,-1000.0,0.00040975,2]
[422503646,1779001852000,-3316.11994332,0.00040975,2]
[422503634,1779001852000,-1000.0,0.00040974,2]
[422503652,1779001852000,-1000.0,0.00040995,28]
[422503658,1779001852000,-151.0,0.00040999,10]
[422503655,1779001852000,-304.83327557,0.00040999,10]
[422503656,1779001852000,-151.0,0.00040999,10]
[422503648,1779001852000,-17342.44378636,0.00040975,2]
[422503653,1779001852000,-578.20924308,0.00040999,10]
[422503647,1779001852000,-150.0,0.00040975,2]
[422503649,1779001852000,-150.0,0.00040975,2]
[422503645,1779001852000,-150.0,0.00040975,2]
[422503641,1779001852000,-1000.0,0.00040975,2]
[422503639,1779001852000,-1000.0,0.00040975,2]
[422503640,1779001852000,-1000.0,0.00040975,2]
[422503638,1779001852000,-1000.0,0.00040975,2]
[422503704,1779001853000,-2236.95670848,0.00040999,10]
[422503705,1779001853000,-270.0455652,0.00040999,10]
[422503708,1779001853000,-1000.0,0.00040999,10]
[422503718,1779001853000,-160.0,0.00041,54]
[422503709,1779001853000,-1000.0,0.00040999,5]
[422503707,1779001853000,-329.54703372,0.00040999,10]
[422503706,1779001853000,-1436.50160752,0.00040999,10]
[422503721,1779001853000,-700.0,0.00041,60]
[422503713,1779001853000,-441.16765548,0.00041,5]
[422503716,1779001853000,-2500.0,0.00041,42]
[422503722,1779001853000,-245.7,0.00041,37]
[422503719,1779001853000,-503.71665438,0.00041,60]
[422503714,1779001853000,-100000.0,0.00041,120]
[422503715,1779001853000,-500.0,0.00041,120]
[422503703,1779001853000,-260.4103811,0.00040999,10]
[422503717,1779001853000,-1124.77924,0.00041,15]
[422503699,1779001853000,-242.15909246,0.00040999,10]
[422503691,1779001853000,-187.78006525,0.00040999,10]
[422503711,1779001853000,-469.17284075,0.00041,30]
[422503720,1779001853000,-500.0,0.00041,60]
[422503688,1779001853000,-152.0,0.00040999,10]
[422503690,1779001853000,-152.0,0.00040999,10]
[422503689,1779001853000,-181.08010149,0.00040999,10]
[422503692,1779001853000,-152.0,0.00040999,10]
[422503693,1779001853000,-194.72792766,0.00040999,10]
[422503696,1779001853000,-217.15233878,0.00040999,10]
[422503695,1779001853000,-209.40437684,0.00040999,10]
[422503694,1779001853000,-201.93286099,0.00040999,10]
[422503698,1779001853000,-233.51889341,0.00040999,10]
[422503697,1779001853000,-225.18697532,0.00040999,10]
[422503700,1779001853000,-2080.17592889,0.00040999,10]
[422503710,1779001853000,-278989.68909117,0.00041,10]
[422503702,1779001853000,-2157.14243826,0.00040999,10]
[422503712,1779001853000,-167.7284,0.00041,120]
[422503701,1779001853000,-251.11897888,0.00040999,10]
[422503723,1779001853000,-467761.24508898,0.00041,120]
[422503746,1779001853000,-710583.02291705,0.00041,120]
[422503726,1779001853000,-974.22219484,0.0004057,120]
[422503747,1779001853000,-752.99552532,0.00041,120]
[422503749,1779001853000,-269.07,0.00028661,7]
[422503748,1779001853000,-269.07,0.0002863,2]
[422503750,1779001853000,-269.07,0.00028693,30]
[422503761,1779001853000,-242301.82037089,0.00041,120]
[422503751,1779001853000,-269.07,0.00028725,2]
[422503724,1779001853000,-1030.30186262,0.00041,120]
[422503755,1779001853000,-269.07,0.00028852,7]
[422503754,1779001853000,-269.07,0.0002882,2]
[422503753,1779001853000,-269.07,0.00028788,30]
[422503757,1779001853000,-138.40888089,0.00036438,2]
[422503758,1779001853000,-269.07,0.00028883,30]
[422503756,1779001853000,-300.0,0.00036438,2]
[422503759,1779001853000,-22.84598091,0.00036438,2]
[422503760,1779001853000,-138.7451382,0.00036438,2]
[422503743,1779001853000,-390161.24107934,0.00041,120]
[422503745,1779001853000,-1000000.0,0.00041,120]
[422503752,1779001853000,-269.07,0.00028756,7]
[422503744,1779001853000,-1000000.0,0.00041,120]
[422503742,1779001853000,-3532.20722519,0.00041,120]
[422503725,1779001853000,-112503.40143781,0.00041,120]
[422503728,1779001853000,-179.0,0.00025695,2]
[422503729,1779001853000,-166.51957216,0.00027397,10]
[422503730,1779001853000,-179.026972,0.00027065,2]
[422503734,1779001853000,-2000.0,0.0004057,120]
[422503727,1779001853000,-455.53,0.0001575,2]
[422503731,1779001853000,-7890.82042784,0.00027397,10]
[422503732,1779001853000,-300.0,0.00036438,2]
[422503735,1779001853000,-2000.0,0.0004057,120]
[422503733,1779001853000,-1025.77780516,0.0004057,120]
[422503738,1779001853000,-2000.0,0.00040975,120]
[422503739,1779001853000,-15235.14873225,0.00041,120]
[422503736,1779001853000,-2000.0,0.0004057,120]
[422503740,1779001853000,-2027.67609915,0.00041,120]
[422503737,1779001853000,-2000.0,0.0004057,120]
[422503741,1779001853000,-7748.77847466,0.00041,120]
[422503771,1779001854000,-269.07,0.00029105,2]
[422503780,1779001854000,-300.0,0.00036438,2]
[422503783,1779001854000,-500.0,0.00038192,120]
[422503775,1779001854000,-694.78311688,0.00033881,2]
[422503774,1779001854000,-1777.20240891,0.00033581,2]
[422503770,1779001854000,-269.07,0.00029074,30]
[422503772,1779001854000,-269.07,0.00029137,7]
[422503773,1779001854000,-269.07,0.00029169,30]
[422503769,1779001854000,-269.07,0.00029042,7]
[422503762,1779001854000,-653.74439782,0.000274,2]
[422503768,1779001854000,-269.07,0.0002901,2]
[422503766,1779001854000,-269.07,0.00028947,7]
[422503776,1779001854000,-2937.21688312,0.00033881,2]
[422503777,1779001854000,-500.0,0.00034247,120]
[422503765,1779001854000,-269.07,0.00028915,2]
[422503764,1779001854000,-1135.72,0.0002863,2]
[422503763,1779001854000,-857.23451152,0.000274,2]
[422503778,1779001854000,-500.0,0.00035562,120]
[422503767,1779001854000,-269.07,0.00028979,30]
[422503781,1779001854000,-500.0,0.00036877,120]
[422503779,1779001854000,-300.0,0.00036438,2]
[422503785,1779001854000,-3632.0,0.00039881,2]
[422503803,1779001854000,-6894.23047553,0.00041,120]
[422503801,1779001854000,-269.07,0.00029201,2]
[422503800,1779001854000,-245.435215,0.00028693,30]
[422503798,1779001854000,-187.27,0.00028661,7]
[422503799,1779001854000,-890.284785,0.00028693,30]
[422503796,1779001854000,-187.27,0.0002863,2]
[422503797,1779001854000,-1135.72,0.00028661,7]
[422503794,1779001854000,-1468.45515,0.00041,120]
[422503791,1779001854000,-814.86974849,0.00041,120]
[422503782,1779001854000,-3632.0,0.00036881,2]
[422503792,1779001854000,-999185.13025151,0.00041,120]
[422503793,1779001854000,-50862.9615801,0.00041,120]
[422503789,1779001854000,-3778.73583403,0.00041,120]
[422503790,1779001854000,-7170.92573248,0.00041,120]
[422503788,1779001854000,-509.0,0.00041,120]
[422503802,1779001854000,-269.08,0.00029232,7]
[422503784,1779001854000,-500.0,0.00039507,120]
[422503786,1779001854000,-500.0,0.00040822,120]
[422503787,1779001854000,-34903.49962023,0.00041,120]
[422503795,1779001854000,-1510.97890934,0.000277,2]
[422503804,1779001858000,518.92620301,0.0001403,2]
[422503807,1779001860000,500.0,0.00014999,2]
[422503806,1779001860000,500.0,0.00014999,2]
[422503805,1779001860000,500.0,0.00014999,2]
[422503808,1779001860000,500.0,0.00014999,2]
[422503810,1779001861000,500.0,0.00014999,2]
[422503809,1779001861000,500.0,0.00014999,2]
[422503812,1779001877000,500.0,0.00014999,2]
[422503811,1779001877000,500.0,0.00014999,2]
[422503814,1779001878000,517.33252803,0.00014999,2]
[422503813,1779001878000,500.0,0.00014999,2]
[422503815,1779001879000,551.53,0.00020548,2]
[422503819,1779001985000,311.07666925,0.00014999,2]
[422503820,1779001997000,532.30271925,0.00014999,2]
[422503825,1779002000000,500.0,0.00017808,2]
[422503824,1779002000000,500.0,0.00017808,2]
[422503823,1779002000000,395.38203945,0.00017808,2]
[422503822,1779002000000,500.0,0.00017808,2]
[422503821,1779002000000,500.0,0.00017808,2]
[422503826,1779002017000,289.6844202,0.00014999,2]
[422503828,1779002095000,182.0,0.0002,2]
[422503829,1779002096000,182.0,0.00021,2]
[422503830,1779002141000,224.0,0.0002,2]
[422503831,1779002142000,224.0,0.00021,2]
[422503833,1779002295000,161.0,0.0002,2]
[422503834,1779002296000,161.0,0.00021,2]
[422503835,1779002299000,-155.28,0.00025342,30]
[422503836,1779002299000,-157.16,0.00025342,30]
[422503837,1779002299000,-153.64,0.00025342,30]
[422503838,1779002299000,-283.92,0.0002783,30]
[422503840,1779002299000,-533.24,0.00028693,30]
[422503841,1779002299000,-532.56,0.00028693,30]
[422503839,1779002299000,-589.74,0.00028693,30]
[422503843,1779002299000,-156.79,0.00028716,30]
[422503844,1779002299000,-161.93,0.0002875,30]
[422503845,1779002299000,-158.29,0.0002875,30]
[422503846,1779002299000,-589.74,0.00028788,30]
[422503847,1779002299000,-533.24,0.00028788,30]
[422503848,1779002299000,-532.56,0.00028788,30]
[422503842,1779002299000,-448.84,0.00028693,30]
[422503860,1779002300000,-589.74,0.00028979,30]
[422503866,1779002300000,-532.56,0.00029074,30]
[422503865,1779002300000,-533.24,0.00029074,30]
[422503864,1779002300000,-589.74,0.00029074,30]
[422503863,1779002300000,-448.84,0.00028979,30]
[422503867,1779002300000,-448.84,0.00029074,30]
[422503862,1779002300000,-532.56,0.00028979,30]
[422503861,1779002300000,-533.24,0.00028979,30]
[422503859,1779002300000,-156.79,0.00028974,30]
[422503850,1779002300000,-150.21,0.00028845,30]
[422503856,1779002300000,-161.93,0.00028931,30]
[422503858,1779002300000,-150.21,0.00028974,30]
[422503855,1779002300000,-448.84,0.00028883,30]
[422503854,1779002300000,-532.56,0.00028883,30]
[422503853,1779002300000,-533.24,0.00028883,30]
[422503852,1779002300000,-589.74,0.00028883,30]
[422503851,1779002300000,-156.79,0.00028845,30]
[422503849,1779002300000,-448.84,0.00028788,30]
[422503857,1779002300000,-158.29,0.00028931,30]
[422503868,1779002300000,-150.21,0.00029103,30]
[422503875,1779002300000,-448.84,0.00029169,30]
[422503870,1779002300000,-161.93,0.00029112,30]
[422503890,1779002300000,-151.0,0.00031227,30]
[422503889,1779002300000,-161.0,0.00031193,30]
[422503888,1779002300000,-152.0,0.00031193,30]
[422503886,1779002300000,-166.66,0.00030961,30]
[422503885,1779002300000,-182.0,0.00030227,30]
[422503884,1779002300000,-151.0,0.00030227,30]
[422503882,1779002300000,-161.0,0.00030193,30]
[422503883,1779002300000,-170.0,0.00030227,30]
[422503881,1779002300000,-152.0,0.00030193,30]
[422503887,1779002300000,-224.0,0.00031193,30]
[422503879,1779002300000,-224.0,0.00030193,30]
[422503880,1779002300000,-159.0,0.00030193,30]
[422503872,1779002300000,-589.74,0.00029169,30]
[422503871,1779002300000,-158.29,0.00029112,30]
[422503874,1779002300000,-532.56,0.00029169,30]
[422503869,1779002300000,-156.79,0.00029103,30]
[422503873,1779002300000,-533.24,0.00029169,30]
[422503876,1779002300000,-150.33,0.00029232,30]
[422503877,1779002300000,-156.9,0.00029232,30]
[422503878,1779002300000,-1593.0,0.00030137,120]
[422503892,1779002301000,-166.66,0.00031613,30]
[422503893,1779002301000,-173.52,0.00031797,120]
[422503894,1779002301000,-500.0,0.00032099,120]
[422503895,1779002301000,-500.0,0.00032099,120]
[422503896,1779002301000,-508.68888162,0.00032099,120]
[422503898,1779002301000,-152.0,0.00032193,30]
[422503891,1779002301000,-182.0,0.00031227,30]
[422503900,1779002301000,-151.0,0.00032227,30]
[422503899,1779002301000,-161.0,0.00032193,30]